Cogmind - Beta 9 @@@ ROGUE MODE // 2019.10.27 @ 17:10:06 Player: Dumes Result: Destroyed by G-47 Trooper with Particle Gun Performance ------------- Evolutions (0) 0 Regions Visited (1) 200 Robots Destroyed (4) 20 Value Destroyed (101) 101 Prototype IDs (0) 0 Alien Tech Used (0) 0 Bonus (0) 0 TOTAL SCORE: 321 Bonus ------- None Cogmind --------- Core Integrity 0/250 Matter 262/300 Energy 100/100 System Corruption 1% Temperature Cool (9) Location -10/Materials Parts ------- Power (1) Propulsion (2) Aluminum Leg Utility (2) Large Storage Unit Weapon (2) Inventory (10) Ion Engine Light Ion Engine Light Treads Flight Unit Heat Sink Small Storage Unit Small Storage Unit Peak State ------------ Power Light Ion Engine Propulsion Light Treads Light Treads Utility Improved Heat Sink Large Storage Unit Weapon Small Laser Light Assault Rifle Inventory Ion Engine Light Ion Engine Aluminum Leg Aluminum Leg Heat Sink Small Storage Unit Small Storage Unit Particle Gun Assault Rifle [Rating: 10] Favorites ----------- Power Light Ion Engine Engine Light Ion Engine Propulsion Aluminum Leg Treads Light Treads Leg Aluminum Leg Wheel Compact Wheel Utility Large Storage Unit Device Improved Heat Sink Storage Large Storage Unit Weapon Assault Rifle Energy Gun Small Laser Ballistic Gun Assault Rifle Build | -11 -10 ------- Run | Scr Mat Slots Evolved . | . . Power . | . . Propulsion . | . . Utility . | . . Weapon . | . . Parts Attached 25 | 7 18 Power 3 | 1 2 Engine 3 | 1 2 Core . | . . Reactor . | . . Propulsion 12 | 3 9 Treads 4 | . 4 Leg 7 | 2 5 Wheel 1 | 1 . Hover . | . . Flight . | . . Utility 5 | 1 4 Device 2 | . 2 Storage 3 | 1 2 Processor . | . . Hackware . | . . Protection . | . . Artifact . | . . Weapon 5 | 2 3 Energy Gun 2 | 1 1 Energy Cannon . | . . Ballistic Gun 3 | 1 2 Ballistic Cannon . | . . Launcher . | . . Special Weapon . | . . Impact Weapon . | . . Slashing Weapon . | . . Piercing Weapon . | . . Special Melee Weapon . | . . Unidentified Prototypes . | . . Parts Lost 3 | . 3 Power . | . . Propulsion 1 | . 1 Utility 1 | . 1 Weapon 1 | . 1 Highest Loss Streak 3 | . 3 Average Slot Usage (%) 80 | . 80 Engine 9 | . 9 Treads 9 | . 9 Leg 15 | . 15 Device 8 | . 8 Storage 15 | . 15 Energy Gun 9 | . 9 Ballistic Gun 10 | . 10 Naked Turns . | . . Heaviest Build 24 | 10 24 Greatest Support 40 | 20 40 Greatest Overweight (x) 5 | 2 5 Average Overweight (x) . | . . Largest Inventory Capacity 12 | 6 12 Average Capacity 8 | 5 8 Most Carried 10 | 6 10 Average Carried 5 | 4 6 Final Capacity 10 | . 10 Final Carried 7 | . 7 Class Distribution -------------------- 100% | Mutant Dominant Class ---------------- Mutant | -10/Materials Resources | -11 -10 ----------- Run | Scr Mat Matter Collected 432 | 244 188 Remotely . | . . Salvage Created 117 | . 117 Parts 9 | . 9 Haulers Intercepted . | . . Recyclers Shooed . | . . Parts Field Recycled . | . . Retrieved Matter . | . . Parts Self-Destructed . | . . Prevented . | . . Kills | -11 -10 ------- Run | Scr Mat Combat Hostiles Destroyed 4 | . 4 Guns 4 | . 4 Classes Destroyed 2 | . 2 Swarmer 2 | . 2 Grunt 2 | . 2 Best Kill Streak 4 | . 4 Combat Bots Only 4 | . 4 Max Kills in Single Turn 1 | . 1 Gunslinging . | . . Exploded . | . . Melee . | . . Uniques/NPCs Destroyed . | . . Combat | -11 -10 -------- Run | Scr Mat Damage Taken 995 | . 995 Core 259 | . 259 Absorbed by Shields . | . . Core Remaining (%) 100 | 100 . Volleys Fired 28 | . 28 Largest 2 | . 2 Hottest 60 | . 60 Shots Fired 38 | . 38 Gun 38 | . 38 Cannon . | . . Launcher . | . . Special . | . . Kinetic 28 | . 28 Thermal 10 | . 10 Explosive . | . . Electromagnetic . | . . Robot Hit Streak 8 | . 8 Robot Miss Streak 4 | . 4 Penetration Max . | . . Secondary Targets 2 | . 2 Max Gunslinging Chain 1 | . 1 Shots Hit Robots 26 | . 26 Core Hits 12 | . 12 Critical Hits 1 | . 1 Critical Kills . | . . Critical Parts Destroyed 1 | . 1 Melee Attacks . | . . Impact . | . . Slashing . | . . Piercing . | . . Sneak Attacks . | . . Combat Hostiles . | . . Follow-up Attacks . | . . Damage Inflicted 333 | . 333 Guns 312 | . 312 Cannons . | . . Explosions . | . . Melee . | . . Ramming 21 | . 21 Kinetic 203 | . 203 Thermal 109 | . 109 Explosive . | . . Electromagnetic . | . . Impact . | . . Slashing . | . . Piercing . | . . Highest Corruption 1 | . 1 Average Corruption 1 | . 1 Corruption Purged . | . . Overload Shots . | . . Overflow Damage . | . . Projectiles . | . . Explosions . | . . Melee . | . . Knockbacks . | . . Impact . | . . Kinetic . | . . Secondary . | . . Self-Inflicted Damage 3 | . 3 Shots . | . . Rammed 2 | . 2 Targets Rammed 4 | . 4 Kicked 2 | . 2 Crushed . | . . Highest Temperature . | . . Average Temperature . | . . Received Heat Transfer 483 | . 483 Siege Activations . | . . Robots Corrupted . | . . Combat Hostiles . | . . Parts Fried . | . . Impact Corruptions . | . . Robots Melted . | . . Combat Hostiles . | . . Parts Melted . | . . Heat Transferred 250 | . 250 Parts Sabotaged . | . . Parts Stolen . | . . Parts Stripped . | . . Power Chain Reactions . | . . Missiles Intercepted . | . . Alert | -11 -10 ------- Run | Scr Mat Peak Influence 115 | . 115 Average Influence 34 | . 40 Maximum Alert Level . | . . Low Security (%) 100 | . . Level 1 . | . . Level 2 . | . . Level 3 . | . . Level 4 . | . . Level 5 . | . . High Security . | . . Max Security . | . . Squads Dispatched 1 | . 1 Investigation . | . . Extermination . | . . Reinforcement 1 | . 1 Assault . | . . Garrison . | . . Intercept . | . . Construction Impeded . | . . Haulers Reinforced . | . . Stealth | -11 -10 --------- Run | Scr Mat Distress Signals 2 | . 2 Communications Jammed . | . . Distress Signals . | . . Times Spotted 12 | . 12 Peak Tracking Total 5 | . 5 Tactical Retreats . | . . Traps | -11 -10 ------- Run | Scr Mat Traps Triggered 4 | . 4 Indirectly . | . . Trap Hack Attempts . | . . Triggered . | . . Disarmed . | . . Reprogrammed . | . . Reused . | . . Traps Extracted . | . . Installed . | . . Triggered . | . . Machines | -11 -10 ---------- Run | Scr Mat Machines Disabled . | . . Max in Single Turn . | . . Machines Sabotaged . | . . Garrisons Compromised . | . . Overloaded Fab Kills . | . . Fab Network Shutdowns . | . . Hacking | -11 -10 --------- Run | Scr Mat Machines Accessed . | . . Terminals . | . . Fabricators . | . . Repair Stations . | . . Recycling Units . | . . Scanalyzers . | . . Garrison Access . | . . Total Hacks . | . . Successful . | . . Failed . | . . Catastrophic . | . . Database Lockouts . | . . Manual . | . . Terminals . | . . Fabricators . | . . Repair Stations . | . . Recycling Units . | . . Scanalyzers . | . . Garrison Access . | . . Terminal Hacks . | . . Fabricator Hacks . | . . Repair Station Hacks . | . . Recycling Unit Hacks . | . . Scanalyzer . | . . Garrison Access Hacks . | . . Unauthorized Hacks . | . . Terminals . | . . Fabricators . | . . Repair Stations . | . . Recycling Units . | . . Scanalyzers . | . . Garrison Access . | . . Data Cores Recovered . | . . Used . | . . Hacking Detections . | . . Full Trace Events . | . . Feedback Events . | . . Feedback Blocked . | . . Robot Schematics Acquired . | . . Robots Built . | . . Matter . | . . Time . | . . Total Robot Build Rating . | . . Part Schematics Acquired . | . . Parts Built . | . . Matter . | . . Time . | . . Total Part Build Rating . | . . Parts Repaired . | . . Time . | . . Parts Recycled . | . . Recycled Matter . | . . Retrieved Matter . | . . Retrieved Components . | . . Parts Scanalyzed . | . . Part Schematics Acquired . | . . Parts Damaged . | . . Bothacking | -11 -10 ------------ Run | Scr Mat Used RIF Installer . | . . Robots Hacked . | . . Non-combat . | . . Combat . | . . Robot Hacks Applied . | . . Relay Couplers Released . | . . Robots Rewired . | . . Allies Hacked . | . . Hacks Repelled . | . . Allies | -11 -10 -------- Run | Scr Mat Total Allies . | . . Largest Group . | . . Highest-Rated Group . | . . Highest-Rated Ally . | . . Total Orders . | . . Ally Attacks . | . . Total Damage . | . . Kills . | . . Allies Corrupted . | . . Allies Melted . | . . Intel | -11 -10 ------- Run | Scr Mat Robot Analysis Total . | . . Derelict Logs Recovered . | . . Drone Launches . | . . Drone Recoveries . | . . Exploration | -11 -10 ------------- Run | Scr Mat Turns Passed 512 | 74 438 Spaces Moved 294 | 52 242 Core 30 | 26 4 Treads 67 | . 67 Legs 197 | 26 171 Wheels . | . . Hover . | . . Flight . | . . Fastest Speed 50 | 50 120 Average Speed 133 | 109 138 Slowest Speed 300 | 150 300 Overloaded Moves . | . . Propulsion Burnouts . | . . Robots Hopped . | . . Cave-ins Triggered . | . . Exploration Rate (%) 12 | 3 21 Regions Visited 1 Branch Regions . Pre-discovered Areas . | . . Known Exits Taken . | . . Unknown Exits Taken 1 | 1 . Scrap Searched . | . . Spaces Dug . | . . Terrain Destroyed . | . . Melee . | . . Projectile . | . . AOE . | . . Actions | -11 -10 --------- Run | Scr Mat Total 372 | 67 305 Wait . | . . Move 293 | 51 242 Hop . | . . Pick Up 18 | 7 11 Fast Attach 5 | 5 . Attach 7 | 1 6 Detach . | . . Swap 13 | 1 12 Drop 4 | 2 2 Fire 28 | . 28 Melee . | . . Ram . | . . Kick 4 | . 4 Crush . | . . Escape Stasis . | . . Rewire . | . . Trap . | . . Miscellaneous . | . . Route ------- -11/Scrapyard -10/Materials (discovered 1 exit: [*Mat]) History --------- Turn | Location | Event 33 | -11/Scrapyard | Discovered new exit (range 15) 75 | -11/Scrapyard | Entered Materials 194 | -10/Materials | Discovered new exit (range 16) 306 | -10/Materials | Build established: Mutant 451 | -10/Materials | Core integrity fell below 50% 486 | -10/Materials | Core integrity fell below 20% 505 | -10/Materials | Lost 3 parts (1n1u1w) 513 | -10/Materials | Destroyed by G-47 Trooper with Particle Gun Last Messages --------------- 00399_ Massive razor-sharp blades shoot up from within the floor. 00399_ Ion Engine severed. 00399_ Aluminum Leg severed. 00400_ W-16 Scout sends out distress signal. 00402_ U-05 Engineer lays Concrete. 00404_ Acquired Ion Engine. 00407_ Acquired Aluminum Leg. 00446_ G-47 Trooper suffers critical hit. 00446_ Destroyed Aluminum Leg. 00458_ Lgt. Assault Rifle destroyed. 00461_ Kicked G-47 Trooper out of the way. 00462_ Slammed into G-47 Trooper. 00468_ O-16 Technician: "IFF HANDSHAKE FAILED. SECURING TERMINAL." 00470_ Imp. Heat Sink destroyed. 00474_ Aluminum Leg destroyed. 00476_ ALERT: Hostiles spotted, dispatching reinforcements to Terminal M006. [Achievement: Uninvited Guest] 00491_ Kicked R-06 Scavenger out of the way. [Achievement: First Step to Greatness] Map ----- +----------------------------------------------------+ | ????????????+ ######????????????????????????????? | | ????????????# # #????????????????????????????? | | ????????????# # #?#####??????????????????????? | | ????????????# # #?# #??????????????????????? | | ???????????? # #?# < #??????????????????????? | | ???????????? # #?# #??????????????????????? | | ????????????# # #?#^ #??????????????????????? | | ????????????# # #?# ^ #??????????????????????? | | ????????????# # #?# #??????????????????????? | | ????????????# # ### ##?????????????????????? | | ############# ###+### #?????????????????????? | | # #?????????????????????? | | + g + """ ????????????????? | | # # """ ????????????????? | | ### #######+########## g # """ ????????????????? | | ??????????# ### ##? ????????????????? | | ??????????# #?# #??####????????????????? | | ??????????# #?# #??????????????????????? | | ??????????# #?# #??????????????????????? | | ??????????# ### #??????????????????????? | | ??????????# / #??????????????????????? | | ??????????# ### g#??????????????????????? | | ??????????# #?### #??????????????????????? | | ??????????###########???# #??????????????????????? | | ????????????????????????# #??????????????????????? | | ????????????????????????#@#??????????????????????? | | ????????????????????????# #??????????????????????? | | ???????????????????????## ##?????????????????????? | | ???????????????????????# ########??????????????? | | ???????????????????????# / """??????????? | | ???????????????????????# ## #####??????????????? | | ???????????????????????###### #??????????????????? | | ????????????????????????????# #??????????????????? | | ????????????????????????????# #??????????????????? | | ????????????????????????????# #????????##+####???? | | ????????????????????????????# #????????# ????? | | ??????????????????????????###+#######??# ????? | | ??????????????????????????# #??# ?????? | | ??????????????????????????# #??# #?????? | | ??????????????????????????# """"""" #??# #?????? | | ??????????????????????????# """"""" #??# #?????? | | ??????????????????????????# """"""" #??# #?????? | | ??????????????????????????# """"""" #??# #?????? | | ??????????????????????????# """"""" #??# #?????? | | ??????????????????????????# #??# #?????? | | ????????????????????###########+#####??# #?????? | | ???????????????? #????# #?????? | | ???????????????????????###### #????# #?????? | | ????????????????????????????# #????# #?????? | | ????????????????????????????# ###### #?????? | +----------------------------------------------------+ Best States ------------- Heat Dissipation 39 Energy Generation 10 Energy Capacity 250 Matter Stores 300 Matter Capacity 300 Sight Range 16 Terrain Scan Density 10 Evasion (%) 50 Recoil Reduction 2 Item Schematics ----------------- None Robot Schematics ------------------ None Fabricated ------------ Nothing Alien Tech Used ----------------- None Achievements -------------- First Step to Greatness Uninvited Guest Challenges ------------ None Game ------ Seed CannonCannonLeg Manual? 0 Play Time 00:24:22 Cumulative 9.7 hours Start 2019.10.26 @ 13:37:54 End 2019.10.27 @ 17:10:06 Sessions 4 Manual Loads 0 Difficulty Rogue Special Mode None Game No. 6 Rogue 6 Adventurer 0 Explorer 0 Win Type - Total 0 Types 0/0/0/0/0/0/0 Lore% 2 Gallery% 12 Achievement% 0 Wizard Run 0 Options --------- ASCII 0 Keyboard 0 Movement Mouse Keybinds 0 Fullscreen 1 Font 18/SmallcapsGlow Map View 76x50 Tactical HUD 1 Map Filters NONE Filters NONE Steam 1 RUN: 78e17244-2ded-478d-801b-914a34341e58